Cogmind - Beta 12 @@@ ROGUE MODE // 2023.11.09 @ 04:42:52 Player: Ev Result: Self-destructed Performance ------------- Evolutions (1) 500 Regions Visited (2) 400 Robots Destroyed (29) 145 Value Destroyed (640) 640 Prototype IDs (4) 80 Alien Tech Used (0) 0 Bonus (0) 0 TOTAL SCORE: 1765 Bonus ------- None Cogmind --------- Core Integrity 351/400 Matter 245/300 Energy 121/125 System Corruption 0% Temperature Danger (428) Movement Flying (37) Location -9/Materials Parts ------- > --- POWER (1) -------- Light Ion Engine > --- PROPULSION (2) --- Improved Flight Unit Improved Flight Unit > --- UTILITY (4) ------ Signal Interpreter Improved Targeting Computer Utility Shielding Hacking Suite > --- WEAPON (2) ------- Improved Medium Laser > --- INVENTORY (5) ---- Improved Ion Engine Cooled Ion Engine Improved Heat Sink Sensor Array Hardened Light Armor Plating Peak State ------------ > --- POWER ------------ Cooled Ion Engine > --- PROPULSION ------- Improved Flight Unit Improved Flight Unit > --- UTILITY ---------- Signal Interpreter Improved Targeting Computer Utility Shielding Hacking Suite > --- WEAPON ----------- Improved Medium Laser Improved Medium Laser > --- INVENTORY -------- Light Ion Engine Improved Ion Engine Improved Heat Sink Hardened Light Armor Plating [Rating: 22] Favorites ----------- Power Improved Ion Engine Engine Improved Ion Engine Propulsion Armored Wheel Treads Armored Treads Wheel Armored Wheel Flight Unit Improved Flight Unit Utility Medium Storage Unit Storage Medium Storage Unit Processor Signal Interpreter Hackware Hacking Suite Protection Hardened Light Armor Plating Weapon Shotgun Energy Gun Improved Medium Laser Energy Cannon Particle Cannon Ballistic Gun Shotgun Ballistic Cannon Light Cannon Build | -11 -10 -9 ------- Run | Jun Mat Mat Slots Evolved 2 | . . 2 Power . | . . . Propulsion . | . . . Utility 2 | . . 2 Weapon . | . . . Parts Attached 37 | 6 14 17 Power 6 | 1 2 3 Engine 6 | 1 2 3 Core . | . . . Reactor . | . . . Propulsion 10 | 2 3 5 Treads 3 | . . 3 Leg . | . . . Wheel 5 | 2 3 . Hover . | . . . Flight 2 | . . 2 Utility 10 | 1 4 5 Device . | . . . Storage 2 | 1 1 . Processor 3 | . 1 2 Hackware 1 | . . 1 Protection 4 | . 2 2 Artifact . | . . . Weapon 11 | 2 5 4 Energy Gun 4 | 1 . 3 Energy Cannon 1 | . . 1 Ballistic Gun 4 | 1 3 . Ballistic Cannon 2 | . 2 . Launcher . | . . . Special Weapon . | . . . Impact Weapon . | . . . Slashing Weapon . | . . . Piercing Weapon . | . . . Special Melee Weapon . | . . . Unidentified Prototypes 2 | . . 2 Parts Lost 1 | . . 1 Power . | . . . Propulsion . | . . . Utility . | . . . Weapon 1 | . . 1 Highest Loss Streak 1 | . . 1 To Critical Strikes . | . . . Average Slot Usage (%) 97 | . 97 97 Engine 12 | . 13 11 Treads 8 | . . 16 Wheel 14 | . 27 1 Flight 1 | . . 3 Storage 11 | . 14 9 Processor 5 | . . 12 Hackware 5 | . . 11 Protection 11 | . 12 10 Energy Gun 6 | . 2 10 Energy Cannon 3 | . . 7 Ballistic Gun 10 | . 19 . Ballistic Cannon 4 | . 5 3 Naked Turns . | . . . Heaviest Build 29 | 11 28 29 Greatest Support 40 | 20 24 40 Greatest Overweight (x) 3 | . 1 3 Average Overweight (x) . | . . . Largest Inventory Capacity 10 | 8 10 10 Average Capacity 9 | 7 9 9 Most Carried 10 | 3 10 9 Average Carried 7 | . 7 7 Final Capacity 10 | 8 10 5 Final Carried 9 | . 9 5 Class Distribution -------------------- 100% | Mutant Dominant Class ---------------- Mutant | -10/Materials Mutant | -9/Materials Resources | -11 -10 -9 ----------- Run | Jun Mat Mat Matter Collected 724 | 243 305 176 Remotely . | . . . Salvage Created 888 | . 412 476 Parts 75 | . 40 35 Haulers Intercepted 4 | . 1 3 Recyclers Shooed . | . . . Parts Field Recycled . | . . . Retrieved Matter . | . . . Parts Self-Destructed . | . . . Prevented . | . . . Kills | -11 -10 -9 ------- Run | Jun Mat Mat Combat Hostiles Destroyed 19 | . 10 9 Guns 17 | . 10 7 Cannons 2 | . . 2 Classes Destroyed 7 | . 6 1 Builder 1 | . 1 . Hauler 4 | . 1 3 Operator 1 | . 1 . Watcher 4 | . 3 1 Swarmer 7 | . 3 4 Grunt 9 | . 7 2 Sentry 3 | . . 3 Best Kill Streak 6 | . 6 4 Combat Bots Only 5 | . 5 4 Max Kills in Single Turn 1 | . 1 1 Gunslinging . | . . . Exploded . | . . . Melee . | . . . Uniques/NPCs Destroyed . | . . . Combat | -11 -10 -9 -------- Run | Jun Mat Mat Damage Taken 759 | . 249 510 Core 77 | . 28 49 Absorbed by Shields . | . . . Regen/Repaired (Parts) 151 | . 151 . Core Remaining (%) 94 | 100 88 . Volleys Fired 60 | . 30 30 Largest 2 | . 2 2 Hottest 124 | . 70 124 Shots Fired 121 | . 61 60 Gun 92 | . 54 38 Cannon 29 | . 7 22 Launcher . | . . . Special . | . . . Kinetic 61 | . 61 . Thermal 60 | . . 60 Explosive . | . . . Electromagnetic . | . . . Robot Hit Streak 10 | . 7 10 Robot Miss Streak 6 | . 6 3 Penetration Max . | . . . Secondary Targets 2 | . 1 1 Max Gunslinging Chain 1 | . 1 1 Shots Hit Robots 79 | . 40 39 Core Hits 44 | . 28 16 Critical Kills 1 | . 1 . Critical Parts Destroyed . | . . . Critical Strikes 4 | . 2 2 Burn 2 | . . 2 Destroy 1 | . 1 . Blast 1 | . 1 . Melee Attacks . | . . . Impact . | . . . Slashing . | . . . Piercing . | . . . Sneak Attacks . | . . . Combat Hostiles . | . . . Follow-up Attacks . | . . . Damage Inflicted 1296 | . 573 723 Guns 1034 | . 556 478 Cannons 262 | . 17 245 Explosions . | . . . Melee . | . . . Ramming . | . . . Kinetic 573 | . 573 . Thermal 723 | . . 723 Explosive . | . . . Electromagnetic . | . . . Impact . | . . . Slashing . | . . . Piercing . | . . . Highest Corruption 1 | . 1 . Average Corruption 1 | . 1 . Corruption Purged . | . . . Corruption Blocked . | . . . Effects 1 | . 1 . Misfires 1 | . 1 . Overload Shots . | . . . Overflow Damage . | . . . Projectiles . | . . . Explosions . | . . . Melee . | . . . Knockbacks . | . . . Impact . | . . . Kinetic . | . . . Secondary . | . . . Self-Inflicted Damage . | . . . Shots . | . . . Rammed . | . . . Targets Rammed . | . . . Kicked . | . . . Crushed . | . . . Highest Temperature 446 | . 84 446 Average Temperature 94 | . 21 137 Received Heat Transfer 261 | . 120 141 Effects 5 | . . 5 Shutdowns 2 | . . 2 Interference 3 | . . 3 Siege Activations . | . . . Robots Corrupted . | . . . Combat Hostiles . | . . . Parts Fried . | . . . Impact Corruptions . | . . . Robots Melted . | . . . Combat Hostiles . | . . . Parts Melted 7 | . . 7 Heat Transferred 1628 | . . 1628 Parts Sabotaged . | . . . Parts Stolen . | . . . Parts Stripped . | . . . Power Chain Reactions . | . . . Missiles Intercepted . | . . . Alert | -11 -10 -9 ------- Run | Jun Mat Mat Peak Influence 264 | . 262 264 Initial 62 | . . 62 Average 92 | . 80 109 Maximum Alert Level 1 | . 1 1 Low Security (%) 94 | 100 92 95 Level 1 5 | . 7 4 Level 2 . | . . . Level 3 . | . . . Level 4 . | . . . Level 5 . | . . . High Security . | . . . Max Security . | . . . Squads Dispatched 2 | . 2 . Investigation . | . . . Extermination . | . . . Reinforcement 2 | . 2 . Assault . | . . . Garrison . | . . . Intercept . | . . . Searches Triggered . | . . . Construction Impeded . | . . . Haulers Reinforced . | . . . Active Scanning Responses . | . . . Cargo Convoy Interrupts . | . . . Stealth | -11 -10 -9 --------- Run | Jun Mat Mat Distress Signals 3 | . 3 . Communications Jammed . | . . . Distress Signals . | . . . Times Spotted 30 | . 17 13 Peak Tracking Total 6 | . 6 4 Tactical Retreats 1 | . . 1 Traps | -11 -10 -9 ------- Run | Jun Mat Mat Traps Triggered 1 | . 1 . Indirectly . | . . . Trap Hack Attempts . | . . . Triggered . | . . . Disarmed . | . . . Reprogrammed . | . . . Reused . | . . . Traps Extracted . | . . . Installed . | . . . Triggered . | . . . Machines | -11 -10 -9 ---------- Run | Jun Mat Mat Machines Disabled 1 | . . 1 Max in Single Turn 1 | . . 1 Machines Repaired . | . . . Machines Sabotaged . | . . . Overloaded Fab Kills . | . . . Hacking | -11 -10 -9 --------- Run | Jun Mat Mat Machines Accessed 6 | . 3 3 Terminals 4 | . 1 3 Fabricators . | . . . Repair Stations 1 | . 1 . Recycling Units 1 | . 1 . Scanalyzers . | . . . Garrison Access . | . . . Total Hacks 27 | . 19 8 Successful 17 | . 11 6 Failed 10 | . 8 2 Catastrophic 2 | . . 2 Database Lockouts . | . . . Manual . | . . . Terminals 13 | . 5 8 Fabricators . | . . . Repair Stations 8 | . 8 . Recycling Units 6 | . 6 . Scanalyzers . | . . . Garrison Access . | . . . Terminal Hacks 7 | . 1 6 Prototype ID Bank 1 | . 1 . Repair Station Index 1 | . . 1 Alert Level 1 | . . 1 Dispatch Records 1 | . . 1 Transport Status 1 | . . 1 Zone Layout 2 | . . 2 Fabricator Hacks . | . . . Repair Station Hacks 6 | . 6 . Scan Component 3 | . 3 . Repair 3 | . 3 . Recycling Unit Hacks 4 | . 4 . Recycle Component 1 | . 1 . Process 1 | . 1 . Report Inventory 1 | . 1 . Retrieve Matter 1 | . 1 . Scanalyzer . | . . . Garrison Access Hacks . | . . . Unauthorized Hacks . | . . . Terminals . | . . . Fabricators . | . . . Repair Stations . | . . . Recycling Units . | . . . Scanalyzers . | . . . Garrison Access . | . . . Data Cores Recovered . | . . . Used . | . . . Hacking Detections 2 | . 1 1 Full Trace Events . | . . . Feedback Events . | . . . Feedback Blocked . | . . . Robot Schematics Acquired . | . . . Robots Built . | . . . Authchips . | . . . Time . | . . . Total Robot Build Rating . | . . . Part Schematics Acquired . | . . . Parts Built . | . . . Authchips . | . . . Time . | . . . Total Part Build Rating . | . . . Parts Repaired 3 | . 3 . Time 96 | . 96 . Parts Recycled 1 | . 1 . Recycled Matter 30 | . 30 . Retrieved Matter 30 | . 30 . Retrieved Components . | . . . Parts Scanalyzed . | . . . Part Schematics Acquired . | . . . Parts Damaged . | . . . Bothacking | -11 -10 -9 ------------ Run | Jun Mat Mat Used RIF Installer . | . . . Robots Hacked . | . . . Non-combat . | . . . Combat . | . . . Robot Hacks Applied . | . . . Relay Couplers Released . | . . . Fabnet Peak Effective % . | . . . Robots Rewired . | . . . Allies Hacked . | . . . Hacks Repelled . | . . . Allies | -11 -10 -9 -------- Run | Jun Mat Mat Total Allies . | . . . Largest Group . | . . . Highest-Rated Group . | . . . Highest-Rated Ally . | . . . Total Orders . | . . . Ally Attacks . | . . . Total Damage . | . . . Kills . | . . . Allies Corrupted . | . . . Allies Melted . | . . . Intel | -11 -10 -9 ------- Run | Jun Mat Mat Robot Analysis Total . | . . . Derelict Logs Recovered . | . . . Drone Launches . | . . . Drone Recoveries . | . . . Exploration | -11 -10 -9 ------------- Run | Jun Mat Mat Turns Passed 1470 | 38 736 696 Spaces Moved 898 | 35 428 435 Core 8 | 6 . 2 Treads 231 | . . 231 Legs . | . . . Wheels 498 | 29 428 41 Hover . | . . . Flight 161 | . . 161 Fastest Speed 37 | 50 80 37 Average Speed 106 | 74 100 115 Slowest Speed 250 | 80 105 250 Overloaded Moves . | . . . Propulsion Burnouts . | . . . Robots Hopped 2 | . . 2 Cave-ins Triggered . | . . . Exploration Rate (%) 34 | 2 71 29 Regions Visited 2 Branch Regions . Pre-discovered Areas . | . . . Known Exits Taken 1 | . 1 . Unknown Exits Taken 1 | 1 . . Scrap Searched . | . . . Spaces Dug . | . . . Terrain Destroyed . | . . . Melee . | . . . Projectile . | . . . AOE . | . . . Terrain Rammed . | . . . Walls Destroyed . | . . . Machines Disabled . | . . . Actions | -11 -10 -9 --------- Run | Jun Mat Mat Total 1287 | 46 672 569 Wait 226 | . 166 60 Move 892 | 34 427 431 Hop 2 | . . 2 Pick Up 46 | 6 24 16 Fast Attach 1 | . 1 . Attach 18 | 6 4 8 Detach . | . . . Swap 18 | . 9 9 Drop 24 | . 11 13 Fire 60 | . 30 30 Melee . | . . . Ram . | . . . Kick . | . . . Crush . | . . . Escape Stasis . | . . . Rewire . | . . . Trap . | . . . Miscellaneous . | . . . Route ------- -11/Junkyard -10/Materials (discovered 3 exits: *Mat / [*Min x2]) -9/Materials (discovered 1 exit: *Min) History --------- Turn | Location | Event 14 | -11/Junkyard | Discovered new exit (range 16) 39 | -11/Junkyard | Entered Materials 51 | -10/Materials | Discovered new exit (range 16) 306 | -10/Materials | Build established: Mutant 373 | -10/Materials | Discovered new exit (range 16) 475 | -10/Materials | Repaired Hrd. Light Armor Plating 511 | -10/Materials | Repaired Imp. Ion Engine 545 | -10/Materials | Repaired Arm. Wheel 765 | -10/Materials | Discovered new exit (range 6) 774 | -10/Materials | Identified exit to Materials 775 | -10/Materials | Entered another Materials area 775 | -9/Materials | Evolved 2 slots: Utility x2 1429 | -9/Materials | Discovered new exit (range 16) 1434 | -9/Materials | Identified exit to Mines 1471 | -9/Materials | Self-destructed Last Messages --------------- 01434_ EXIT=IDENTIFIED: MINES 01439_ W-16 Scout destroyed. 01439_ Material Compactor disabled. 01444_ Acquired Sensor Array. 01458_ Critical hit (Burn: +37). 01459_ Y-45 Defender suffers critical hit (Burn). 01460_ K-01 Serf cleans the Machine. 01461_ Y-45 Defender heat damages Beam Rifle. 01462_ Melted Lgt. Armor Plating. 01463_ K-01 Serf cleans the Machine. 01464_ Y-45 Defender heat damages Hvy. Assault Rifle. 01465_ Melted Lgt. Treads. 01466_ Power failure, Lgt. Ion Engine shutdown. 01467_ Critical hit (Burn: +37). 01467_ K-01 Serf cleans the Machine. 01468_ Heat Sink melted. 01468_ Y-45 Defender destroyed. 01468_ Switching to secondary target: Y-45 Defender. 01470_ Imp. Medium Laser destroyed. 01470_ K-01 Serf cleans the Machine. Map ----- +----------------------------------------------------+ | ###### #???????????????????????????????????????? | | # #?????????????????????????# R?????????? | | # #?????????????????????????# ""?????????? | | + #?????????????????????????# ?????????? | | """ # #?????#######?????????????# ?????????? | | """ # #######!]! ]#?????????????####+?????????? | | """ ?# =**%==[]=#??????????????# ?????????? | | ################%= ==#?????########## ?????????? | | ! #????????# %=* #?????# + ?????????? | | #????????# ![ #?????# ### ?????????? | | #??########! ##?????# #?# ?????????? | | """ #??# ! # #??????# #?### ?????????? | | """ #??#! + #??????# #???# ?????????? | | """ #??# # ######## #?### ?????????? | | #??# # ## ##+####### ?????????? | | #######??# # ?????????? | | #????# # =%! T ?????????? | | #????######## [ ?????????? | | ##+#######?????###### ### ###### ?????????? | | # = ! ############# a##?# #????####?????????? | | # =! # # ####+########??????????? | | # # """ """ + Y# ##?????????? | | # # """ """ # # """ "" #?????????? | | + ! # """ """ # # """"" "" ##?????????? | | # =# """ """ # # """"" T" #??????????? | | ######+### # @# """"" "" #??????????? | | #???# #?# # %Y% "" "" #??????????? | | ##### #?############# *#! ##?????????? | | #????????????## ##############?????????? | | #######????????????# """# #?????????? | | #??????????????????# "# #?????????? | | ###??????????????????# r |"# """ """ #?????????? | | #????????????????????# > ""#???????????????????? | | ###??????????????????# |"#???????????????????? | | #??????????????????# "#???????????????????? | | #??????????????????# k"""#???????????????????? | | #??????????????????## ####???????????????????? | | #???????????????????# #??????????????????????? | | #######?????????????+ ??????????????????????? | | ## ?????????????# ??????????????????????? | | ## """ ?????????????# ??????????????????????? | | # """ ?????????????#####??????????????????????? | | " # """ ????????????????????????????????????????? | | + ????????????????????????????????????????? | | ?????????????????????????????????????????????????? | | ?????????????????????????????????????????????????? | | ?????????????????????????????????????????????????? | | ?????????????????????????????????????????????????? | | ?????????????????????????????????????????????????? | | ?????????????????????????????????????????????????? | +----------------------------------------------------+ Best States ------------- Heat Dissipation 28 Energy Generation 12 Energy Capacity 265 Matter Stores 300 Matter Capacity 300 Sight Range 16 Terrain Scan Density 10 Armor Coverage 150 Utility Shielding 33 Evasion (%) 62 Targeting Accuracy 6 Recoil Reduction 2 Offensive Hacking 10 Item Schematics ----------------- None Robot Schematics ------------------ None Fabricated ------------ Nothing Alien Tech Used ----------------- None Achievements -------------- None Challenges ------------ None Game ------ Seed PointDynamicCompressor Manual? 0 Play Time 00:21:11 Cumulative 12.0 hours Start 2023.11.09 @ 04:24:35 End 2023.11.09 @ 04:42:52 Sessions 1 Manual Loads 0 Difficulty Rogue Special Mode None Game No. 30 Rogue 30 Adventurer 0 Explorer 0 Win Type - Total 0 Types 0/0/0/0/0/0/0/0/0 Lore% 6 Gallery% 17 Achievement% 10 Wizard Run 0 Options --------- ASCII 0 Keyboard 0 Movement Mouse Keybinds 0 Fullscreen 1 Font 24/Smallcaps Map View 76x50 Tactical HUD 1 Map Filters NONE Filters NONE Steam 1 RUN: 4b7a1a1d-a713-40a3-95a3-aee888eb6fb8